Cogmind - Beta 16.1 *** ADVENTURER MODE // 2026.04.23 @ 12:17:01 Player: kareds Result: Destroyed by as-38016 with Assembled Heavy Rifle Performance ------------- Evolutions (0) 0 Regions Visited (2) 400 Robots Destroyed (26) 130 Value Destroyed (341) 341 Prototype IDs (2) 40 Alien Tech Used (0) 0 Bonus (0) 0 TOTAL SCORE: 911 Bonus ------- None Cogmind --------- Core Integrity 0/250 Matter 295/300 Energy 100/100 System Corruption 1% Temperature Cool (0) Movement Core (350) Ox6 Location -10/Mines Parts ------- > --- POWER (1) -------- (None) > --- PROPULSION (2) --- (None) > --- UTILITY (2) ------ Large Storage Unit Visual Processing Unit > --- WEAPON (2) ------- (None) > --- INVENTORY (15) --- Flight Unit Flight Unit Flight Unit Small Battery (100) Medium Matter Pod (100) Transport Network Coupler Beam Cannon Proton Bomb Trap Peak State ------------ > --- POWER ------------ Ion Engine > --- PROPULSION ------- Light Treads Light Treads > --- UTILITY ---------- Large Storage Unit Visual Processing Unit > --- WEAPON ----------- EM Pulse Gun Grenade Launcher > --- INVENTORY -------- Light Ion Engine Flight Unit Flight Unit Flight Unit Flight Unit Flight Unit Small Battery Medium Matter Pod Transport Network Coupler Beam Cannon [Rating: 9] Favorites ----------- Power Ion Engine Engine Ion Engine Propulsion Light Treads Treads Light Treads Flight Unit Flight Unit Utility Visual Processing Unit Storage Large Storage Unit Processor Visual Processing Unit Weapon EM Pulse Gun Energy Gun EM Pulse Gun Energy Cannon Beam Cannon Launcher Grenade Launcher Build | -11 -10 -10 ------- Run | Yrd Mat Min Slots Evolved . | . . . Power . | . . . Propulsion . | . . . Utility . | . . . Weapon . | . . . Parts Attached 13 | 5 6 2 Power 2 | 1 1 . Engine 2 | 1 1 . Core . | . . . Reactor . | . . . Propulsion 4 | 2 . 2 Treads 2 | 2 . . Leg . | . . . Wheel . | . . . Hover . | . . . Flight 2 | . . 2 Utility 3 | . 3 . Device . | . . . Storage 2 | . 2 . Processor 1 | . 1 . Hackware . | . . . Protection . | . . . Artifact . | . . . Weapon 4 | 2 2 . Energy Gun 2 | 2 . . Energy Cannon 1 | . 1 . Ballistic Gun . | . . . Ballistic Cannon . | . . . Launcher 1 | . 1 . Special Weapon . | . . . Impact Weapon . | . . . Slashing Weapon . | . . . Piercing Weapon . | . . . Special Melee Weapon . | . . . Unidentified Prototypes . | . . . Parts Lost 6 | . . 6 Power 1 | . . 1 Propulsion 3 | . . 3 Utility . | . . . Weapon 2 | . . 2 Highest Loss Streak 5 | . . 5 To Critical Strikes . | . . . Average Backups 5 | . 5 8 Power . | . . . Propulsion 1 | . 1 4 Utility 2 | . 2 3 Weapon . | . . 1 Tool/Special . | . . . Unused Backups 6 | . . 6 Power . | . . . Propulsion 3 | . . 3 Utility 3 | . . 3 Weapon . | . . . Tool/Special . | . . . Average Slot Usage (%) 95 | . 97 80 Engine 13 | . 14 12 Treads 27 | . 28 23 Storage 12 | . 12 14 Processor 13 | . 13 14 Energy Gun 13 | . 14 12 Energy Cannon 3 | . 3 . Launcher 8 | . 10 . Peak Build Rating 9 | 5 9 8 Average Rating 7 | 4 7 6 On Entrance 4 | . 5 8 Avg Prop Armor Cover (%) . | . . . Naked Turns . | . . . Heaviest Build 90 | 8 90 25 Greatest Support 40 | 40 40 40 Greatest Overweight (x) 6 | 1 2 6 Average Overweight (x) . | . . . Largest Inventory Capacity 25 | 5 25 15 Average Capacity 13 | 5 14 15 Most Carried 13 | . 10 13 Average Carried 5 | . 5 9 Final Capacity 15 | 5 15 15 Final Carried 9 | . 9 8 Class Distribution -------------------- 100% | Mutant Dominant Class ---------------- Mutant | -10/Materials Mutant | -10/Mines Resources | -11 -10 -10 ----------- Run | Yrd Mat Min Matter Collected 490 | 109 376 5 Remotely . | . . . Salvage Created 507 | . 445 62 Parts 44 | . 40 4 Haulers Intercepted 2 | . 2 . Recyclers Shooed . | . . . Parts Field Recycled . | . . . Retrieved Matter . | . . . Parts Self-Destructed . | . . . Prevented . | . . . Parts Restored . | . . . Kills | -11 -10 -10 ------- Run | Yrd Mat Min Combat Hostiles Destroyed 17 | . 13 4 Guns 7 | . 6 1 Cannons 1 | . 1 . AOE 9 | . 6 3 Classes Destroyed 8 | . 7 1 Worker 3 | . 3 . Builder 2 | . 2 . Hauler 2 | . 2 . Mechanic 1 | . 1 . Watcher 2 | . 2 . Swarmer 12 | . 9 3 Grunt 4 | . 4 . Assembled 1 | . . 1 Best Kill Streak 5 | . 5 3 Combat Bots Only 3 | . 3 3 Max Kills in Single Turn 3 | . 3 2 Gunslinging . | . . . Exploded 2 | . 2 2 Melee . | . . . Uniques/NPCs Destroyed . | . . . Combat | -11 -10 -10 -------- Run | Yrd Mat Min Hostile Shots Fired 98 | . 62 36 Missed 31 | . 20 11 Hits 67 | . 42 25 Melee 13 | . . 13 Projectile 54 | . 42 12 AOE 4 | . . 4 Critical Strikes 1 | . . 1 Damage Taken 822 | . 305 517 Core 259 | . 21 238 Absorbed by Shields . | . . . Ignored by Resistances 241 | . 96 145 Regen/Repaired (Parts) 44 | . 44 . Core Remaining (%) 100 | 100 . . Volleys Fired 46 | . 38 8 Largest 2 | . 2 1 Hottest 100 | . 100 40 Shots Fired 52 | . 44 8 Gun 35 | . 28 7 Cannon 6 | . 6 . Launcher 11 | . 10 1 Special . | . . . Kinetic . | . . . Thermal 6 | . 6 . Explosive 11 | . 10 1 Electromagnetic 35 | . 28 7 Robot Hit Streak 11 | . 11 5 Robot Miss Streak 3 | . 3 1 Penetration Max . | . . . Secondary Targets . | . . . Shots Hit Robots 36 | . 30 6 Core Hits 32 | . 28 4 Critical Kills . | . . . Critical Parts Destroyed . | . . . Critical Strikes . | . . . Melee Attacks . | . . . Impact . | . . . Slashing . | . . . Piercing . | . . . Sneak Attacks . | . . . Combat Hostiles . | . . . Follow-up Attacks . | . . . Damage Inflicted 1096 | . 903 193 Guns 312 | . 248 64 Cannons 106 | . 106 . Explosions 662 | . 533 129 Melee . | . . . Ramming 16 | . 16 . Kinetic . | . . . Thermal 106 | . 106 . Explosive 662 | . 533 129 Electromagnetic 312 | . 248 64 Impact . | . . . Slashing . | . . . Piercing . | . . . Highest Corruption 1 | . . 1 Average Corruption 1 | . . 1 Corruption Purged . | . . . Corruption Blocked . | . . . Overload Shots . | . . . Overflow Damage 3 | . 3 . Projectiles . | . . . Explosions 3 | . 3 . Melee . | . . . Knockbacks . | . . . Impact . | . . . Kinetic . | . . . Secondary . | . . . Self-Inflicted Damage 7 | . 7 . Shots 1 | . 1 . Rammed 1 | . 1 . Targets Rammed 3 | . 3 . Kicked . | . . . Crushed 2 | . 2 . Highest Temperature 78 | . 78 2 Average Temperature 26 | . 27 1 Received Heat Transfer 161 | . 81 80 Siege Activations . | . . . Martial Activations . | . . . Shielding Activations . | . . . Robots Disrupted . | . . . Combat Hostiles . | . . . Robots Corrupted . | . . . Combat Hostiles . | . . . Parts Fried 1 | . . 1 Impact Corruptions . | . . . Robots Melted . | . . . Combat Hostiles . | . . . Parts Melted . | . . . Heat Transferred 222 | . 222 . Parts Sabotaged . | . . . Parts Stolen . | . . . Parts Stripped . | . . . Power Chain Reactions . | . . . Alert | -11 -10 -10 ------- Run | Yrd Mat Min Maximum Alert Level . | . . . Low Security (%) 100 | 100 100 100 Level 1 . | . . . Level 2 . | . . . Level 3 . | . . . Level 4 . | . . . Level 5 . | . . . High Security . | . . . Max Security . | . . . Peak Influence 175 | . 175 85 Initial 18 | . . 18 Average 49 | . 52 47 Influence Increases 521 | . 444 77 Destroy 0b10 Robot/C 320 | . 260 60 Destroy 0b10 Robot/NC 50 | . 50 . Destroy Leader 58 | . 48 10 Successful Hack 6 | . 6 . Disable Machine 9 | . 9 . Destroy Structure 63 | . 56 7 Lose Combat Pursuer 15 | . 15 . Influence Decreases 521 | . 388 133 Entered New Map 38 | . . 38 Time Decay 448 | . 388 60 Lost Part 35 | . . 35 Squads Dispatched . | . . . Investigation . | . . . Extermination . | . . . Reinforcement . | . . . Assault . | . . . Garrison . | . . . Intercept . | . . . Searches Triggered . | . . . Construction Impeded . | . . . Haulers Reinforced . | . . . Active Scanning Responses . | . . . Cargo Convoy Interrupts . | . . . Stealth | -11 -10 -10 --------- Run | Yrd Mat Min Distress Signals 1 | . 1 . Communications Jammed . | . . . Distress Signals . | . . . Times Spotted 29 | . 20 9 Peak Tracking Total 5 | . 4 5 Tactical Retreats 1 | . 1 . Traps | -11 -10 -10 ------- Run | Yrd Mat Min Traps Triggered . | . . . Indirectly . | . . . Trap Hack Attempts . | . . . Triggered . | . . . Disarmed . | . . . Reprogrammed . | . . . Reused 2 | . . 2 Traps Extracted . | . . . Installed 2 | . . 2 Triggered . | . . . Most Traps Carried 4 | . . 4 Machines | -11 -10 -10 ---------- Run | Yrd Mat Min Machines Disabled 1 | . 1 . Max in Single Turn 1 | . 1 . Machines Repaired . | . . . Machines Dismantled . | . . . Machines Sabotaged . | . . . Overloaded Fab Kills . | . . . Hacking | -11 -10 -10 --------- Run | Yrd Mat Min Machines Accessed 8 | . 8 . Terminals 5 | . 5 . Fabricators . | . . . Repair Stations 1 | . 1 . Recycling Units 2 | . 2 . Scanalyzers . | . . . Garrison Access . | . . . Total Hacks 17 | . 17 . Successful 12 | . 12 . Failed 5 | . 5 . Catastrophic 1 | . 1 . Database Lockouts . | . . . Manual 1 | . 1 . Terminals 9 | . 9 . Fabricators . | . . . Repair Stations 5 | . 5 . Recycling Units 3 | . 3 . Scanalyzers . | . . . Garrison Access . | . . . Terminal Hacks 5 | . 5 . Record 1 | . 1 . Robot Analysis 2 | . 2 . Prototype ID Bank 1 | . 1 . Dispatch Records 1 | . 1 . Fabricator Hacks . | . . . Repair Station Hacks 4 | . 4 . Scan Component 2 | . 2 . Repair 2 | . 2 . Recycling Unit Hacks 3 | . 3 . Report Inventory 2 | . 2 . Retrieve Matter 1 | . 1 . Scanalyzer . | . . . Garrison Access Hacks . | . . . Unauthorized Hacks . | . . . Terminals . | . . . Fabricators . | . . . Repair Stations . | . . . Recycling Units . | . . . Scanalyzers . | . . . Garrison Access . | . . . Data Cores Recovered . | . . . Used . | . . . Hacking Detections 4 | . 4 . Full Trace Events . | . . . Feedback Events . | . . . Feedback Blocked . | . . . Robot Schematics Acquired . | . . . Robots Built . | . . . Authchips . | . . . Time . | . . . Total Robot Build Rating . | . . . Part Schematics Acquired . | . . . Parts Built . | . . . Authchips . | . . . Time . | . . . Total Part Build Rating . | . . . Part Studies Acquired . | . . . Parts Repaired 2 | . 2 . Time 62 | . 62 . Parts Recycled . | . . . Recycled Matter . | . . . Retrieved Matter 35 | . 35 . Retrieved Components . | . . . Parts Scanalyzed . | . . . Part Schematics Acquired . | . . . Parts Damaged . | . . . Bothacking | -11 -10 -10 ------------ Run | Yrd Mat Min Used RIF Installer . | . . . Robots Hacked . | . . . Non-combat . | . . . Combat . | . . . Robot Hacks Applied . | . . . Relay Couplers Released . | . . . Fabnet Peak Effective % . | . . . Robots Rewired . | . . . Allies Hacked . | . . . Hacks Repelled . | . . . Allies | -11 -10 -10 -------- Run | Yrd Mat Min Total Allies . | . . . Largest Group . | . . . Highest-Rated Group . | . . . Highest-Rated Ally . | . . . Total Orders . | . . . Ally Attacks . | . . . Total Damage . | . . . Kills . | . . . Allies Corrupted . | . . . Allies Melted . | . . . Intel | -11 -10 -10 ------- Run | Yrd Mat Min Active Infowar (turns) 1278 | . 1128 150 Optics 1278 | . 1128 150 Robot Analysis Total 2 | . 2 . Derelict Logs Recovered 1 | . . 1 Drone Launches . | . . . Drone Recoveries . | . . . Exploration | -11 -10 -10 ------------- Run | Yrd Mat Min Turns Passed 1404 | 58 1196 150 Spaces Moved 743 | 35 636 72 Core 5 | 4 . 1 Treads 733 | 31 636 66 Legs . | . . . Wheels . | . . . Hover . | . . . Flight 5 | . . 5 Fastest Speed 50 | 50 160 160 Average Speed 161 | 148 161 174 Slowest Speed 360 | 160 320 360 Overloaded Moves . | . . . Propulsion Burnouts . | . . . Robots Hopped . | . . . Potential Cave-ins . | . . . Cave-ins Triggered . | . . . Exploration Rate (%) 39 | 4 94 20 Regions Visited 2 Branch Regions 1 Pre-discovered Areas 1 | . . 1 Known Exits Taken . | . . . Unknown Exits Taken 2 | 1 1 . Scrap Searched . | . . . Spaces Dug . | . . . Terrain Destroyed 71 | . 64 7 Melee . | . . . Projectile . | . . . AOE 71 | . 64 7 Terrain Rammed . | . . . Walls Destroyed . | . . . Machines Disabled . | . . . Actions | -11 -10 -10 --------- Run | Yrd Mat Min Total 890 | 39 760 91 Wait 62 | . 62 . Move 741 | 34 635 72 Hop . | . . . Pick Up 16 | . 12 4 Fast Attach 9 | 5 4 . Attach 4 | . 2 2 Detach . | . . . Swap 1 | . 1 . Drop 6 | . 3 3 Fire 46 | . 38 8 Melee . | . . . Ram . | . . . Kick . | . . . Crush 3 | . 3 . Escape Stasis . | . . . Rewire . | . . . Trap 2 | . . 2 Miscellaneous . | . . . Route ------- -11/Scrapyard -10/Materials (discovered 4 exits: [*Mat x2] / [*Min] / [*Sub]) -10/Mines History --------- Turn | Location | Event 9 | -11/Scrapyard | Discovered new exit (range 15) 59 | -11/Scrapyard | Entered Materials 175 | -10/Materials | Discovered new exit (range 17) 302 | -10/Materials | Build established: Mutant 496 | -10/Materials | Discovered new exit (range 10) 791 | -10/Materials | Repaired EM Pulse Gun 854 | -10/Materials | Repaired Corrupted Flight Unit 890 | -10/Materials | Discovered new exit (range 13) 1186 | -10/Materials | Discovered new exit (range 18) 1255 | -10/Materials | Entered Mines 1270 | -10/Mines | Assembled infested the area 1275 | -10/Mines | Assisted by a Guerilla fighting off Assembled 1277 | -10/Mines | Met a Derelict bent on vengeance 1277 | -10/Mines | Learned location of Mines (-9) 1351 | -10/Mines | Found a hidden stash of uninstalled traps 1393 | -10/Mines | Core integrity fell below 50% 1402 | -10/Mines | Core integrity fell below 20% 1405 | -10/Mines | Destroyed by as-38016 with Assembled Heavy Rifle Last Messages --------------- Lgt. Treads destroyed. EM Pulse Gun destroyed. Dropped Proton Bomb Trap. Lgt. Ion Engine destroyed. Dropped Proton Bomb Trap. Installed Proton Bomb Trap. Knocked back. as-72214 triggered Proton Bomb Trap. A bubble of electromagnetic force engulfs the area. as-31527 destroyed. Flight Unit destroyed. as-49793 destroyed. Dropped Proton Bomb Trap. Installed Proton Bomb Trap. as-72214 triggered Proton Bomb Trap. A bubble of electromagnetic force engulfs the area. Flight Unit destroyed. as-40891 destroyed. Map ----- +----------------------------------------------------+ | ????????????????????????????????????????????????? | | ????????????????????????????????????????????????? | | ????????????????????????????????????????????????? | | ??????????????????????????????#####???????????##? | | ????????????????????????####### ##????????? #? | | ????????????????????????# ###?????? #? | | ????????????????????????# #### ##????# #? | | ????????????????????????# #??## #???# #? | | ????????????????????????# #???## #??# #? | | ????????????????????????# #????# ### #?? | | ????????????????????????# #????# #??? | | ????????????????????????# #???# ##??? | | ????????????????????????# #???# ##???? | | ????????????????????????# #???## ###????? | | ?????????????????????#### ######## ##??????? | | ?????????????????????# ###??????? | | ????????##???????????# ######### #???????? | | ????????? ???????????# ###?????## ###???????? | | ??????????%??????????# #??????# % #?????????? | | ??????????# ??????#### ##???#### #?????????? | | ??????????#%=????## ##????# #?????????? | | ??????????# ##### ##?????# # #######????? | | ??????????# %= % ##?????## % % #????? | | ??????????# a & ##??## ## =%[ """ #????? | | ??????????######## % ### ## # = """ #????? | | ?????????????????## a a@ # """ #????? | | ??????????????????##*]#### #### #????? | | ???????????????????## #?? r%=% """ """ #????? | | ????????????????????# #?## ### """ """ #????? | | ???????????????????? #??# """ """ #????? | | ????????????????????###??# # #????? | | ?????????????????????????# # # #############????? | | ?????????????????????????#?####?????????????????? | | ????????????????????????????????????????????????? | | ????????????????????????????????????????????????? | | ????????????????????????????????????????????????? | | ????????????????????????????????????????????????? | | ????????????????????????????????????????????????? | | ????????????????????????????????????????????????? | | ????????????????????????????????????????????????? | | ????????????????????????????????????????????????? | | ????????????????????????????????????????????????? | | ????????????????????????????????????????????????? | | ????????????????????????????????????????????????? | | ????????????????????????????????????????????????? | | ????????????????????????????????????????????????? | | ????????????????????????????????????????????????? | | ????????????????????????????????????????????????? | | ????????????????????????????????????????????????? | | ????????????????????????????????????????????????? | +----------------------------------------------------+ Best States ------------- Heat Dissipation 25 Energy Generation 10 Energy Capacity 250 Matter Stores 300 Matter Capacity 300 Sight Range 18 Terrain Scan Density 10 Resistance: KI 20 Resistance: TH 20 Resistance: EX 20 Resistance: EM 20 Resistance: I 20 Resistance: S 20 Resistance: P 20 Evasion (%) 40 Recoil Reduction 2 Offensive Hacking 10 Item Schematics ----------------- None Robot Schematics ------------------ None Fabricated ------------ Nothing Repaired ---------- EM Pulse Gun | 8% | -10/Materials Flight Unit | 85% | -10/Materials | Corrupted Studied --------- None Alien Tech Used ----------------- None Achievements -------------- None Challenges ------------ None Game ------ Seed ShiftBombardmentProtomatter Manual? 0 Play Time 00:16:22 Cumulative 9.3 hours Start 2026.04.23 @ 12:01:26 End 2026.04.23 @ 12:17:01 Sessions 1 Manual Loads 0 Difficulty Adventurer Special Mode None Game No. 12 Rogue 0 Adventurer 12 Explorer 0 Win Type - Total 0 Types 0/0/0/0/0/0/0/0/0/0 Lore% 23 Gallery% 17 Achievement% 17 Wizard Run 0 Options --------- Layout 1 ASCII 0 Keyboard 0 Movement Mouse Keybinds 0 Fullscreen 1 Font 24/Terminus Map View 50x35 Zoom Use 0% Tactical HUD 0 Map Filters NONE Filters NONE Steam 1 RUN: dd2187b5-1b78-4bd0-8d6b-e33b8d1b929e